[Event "*** Titled Tuesday Blitz"]
[Site "Chess.com"]
[Date "2018.11.06"]
[Round "7"]
[White "RaphaeI"]
[Black "AlexTriapishko"]
[Result "1/2-1/2"]
[WhiteElo "2587"]
[BlackElo "2761"]
[TimeControl "180+2"]
[EndTime "14:37:38 PST"]
[Termination "Game drawn by repetition"]

1. Nf3 {[%clk 0:03:01.9]} 1... Nf6 {[%clk 0:02:59.2]} 2. c4 {[%clk 0:03:02.6]}
2... c5 {[%clk 0:02:54.6]} 3. Nc3 {[%clk 0:03:03]} 3... d5 {[%clk 0:02:55.9]} 4.
cxd5 {[%clk 0:03:02.8]} 4... Nxd5 {[%clk 0:02:57.8]} 5. e3 {[%clk 0:03:04.3]}
5... e6 {[%clk 0:02:56.6]} 6. d4 {[%clk 0:03:02.7]} 6... cxd4 {[%clk 0:02:57.6]}
7. exd4 {[%clk 0:03:02.1]} 7... Nxc3 {[%clk 0:02:57.7]} 8. bxc3 {[%clk
0:03:02.7]} 8... Qc7 {[%clk 0:02:59.3]} 9. Bd2 {[%clk 0:02:58.2]} 9... Bd6
{[%clk 0:03:00.6]} 10. Bd3 {[%clk 0:02:58.2]} 10... b6 {[%clk 0:02:55.4]} 11.
O-O {[%clk 0:02:56.8]} 11... Bb7 {[%clk 0:02:55]} 12. Re1 {[%clk 0:02:55.9]}
12... Nd7 {[%clk 0:02:51.7]} 13. a4 {[%clk 0:02:50.6]} 13... Nf6 {[%clk
0:02:46.1]} 14. c4 {[%clk 0:02:14.1]} 14... O-O {[%clk 0:02:42.7]} 15. h3 {[%clk
0:02:15.2]} 15... Rfe8 {[%clk 0:02:40.7]} 16. a5 {[%clk 0:02:14.8]} 16... e5
{[%clk 0:02:23.6]} 17. dxe5 {[%clk 0:02:08]} 17... Bxe5 {[%clk 0:02:24.4]} 18.
axb6 {[%clk 0:01:48]} 18... axb6 {[%clk 0:02:22.6]} 19. Rxa8 {[%clk 0:01:48.8]}
19... Bxa8 {[%clk 0:02:23.8]} 20. Rxe5 {[%clk 0:01:40.1]} 20... Rxe5 {[%clk
0:02:19.5]} 21. Nxe5 {[%clk 0:01:41.2]} 21... Qxe5 {[%clk 0:02:20.3]} 22. Be3
{[%clk 0:01:42.8]} 22... Qc7 {[%clk 0:01:26.2]} 23. Qb1 {[%clk 0:01:39]} 23...
Nd7 {[%clk 0:01:01.4]} 24. Bxh7+ {[%clk 0:01:37]} 24... Kh8 {[%clk 0:01:02.7]}
25. Be4 {[%clk 0:01:13.7]} 25... Bc6 {[%clk 0:00:56.1]} 26. Bxc6 {[%clk
0:01:09.1]} 26... Qxc6 {[%clk 0:00:58]} 27. Qf5 {[%clk 0:01:10.5]} 27... Kg8
{[%clk 0:00:52.2]} 28. h4 {[%clk 0:01:04.3]} 28... g6 {[%clk 0:00:44.5]} 29. Qb5
{[%clk 0:00:47.3]} 29... Qe6 {[%clk 0:00:41.6]} 30. Qd5 {[%clk 0:00:24]} 30...
Qxd5 {[%clk 0:00:29]} 31. cxd5 {[%clk 0:00:25.9]} 31... b5 {[%clk 0:00:30.9]}
32. Bd4 {[%clk 0:00:21.9]} 32... b4 {[%clk 0:00:32.3]} 33. g4 {[%clk 0:00:22.6]}
33... b3 {[%clk 0:00:32.8]} 34. Kf1 {[%clk 0:00:22.3]} 34... Nb6 {[%clk
0:00:22.6]} 35. d6 {[%clk 0:00:22.4]} 35... Kf8 {[%clk 0:00:24]} 36. h5 {[%clk
0:00:19.3]} 36... gxh5 {[%clk 0:00:15.1]} 37. gxh5 {[%clk 0:00:21.2]} 37... Nd7
{[%clk 0:00:07.6]} 38. Ke2 {[%clk 0:00:20.4]} 38... f6 {[%clk 0:00:05]} 39. Kd3
{[%clk 0:00:20.3]} 39... Kg7 {[%clk 0:00:06.5]} 40. Kc3 {[%clk 0:00:20.5]} 40...
Kh6 {[%clk 0:00:07.6]} 41. Kxb3 {[%clk 0:00:21.8]} 41... Kxh5 {[%clk 0:00:09.2]}
42. Kc4 {[%clk 0:00:23.7]} 42... Kg4 {[%clk 0:00:09.3]} 43. Kd5 {[%clk
0:00:24.8]} 43... Kf5 {[%clk 0:00:10.9]} 44. f3 {[%clk 0:00:15.4]} 44... Nf8
{[%clk 0:00:11.8]} 45. Kc6 {[%clk 0:00:14]} 45... Ke6 {[%clk 0:00:12.9]} 46. f4
{[%clk 0:00:12.6]} 46... f5 {[%clk 0:00:14]} 47. Kc7 {[%clk 0:00:12.8]} 47...
Nd7 {[%clk 0:00:15.9]} 48. Kc6 {[%clk 0:00:11.6]} 48... Nf8 {[%clk 0:00:17.1]}
49. Bg7 {[%clk 0:00:11]} 49... Nd7 {[%clk 0:00:19]} 50. Bh6 {[%clk 0:00:09.6]}
50... Nf6 {[%clk 0:00:19.8]} 51. Bg5 {[%clk 0:00:10.2]} 51... Nd7 {[%clk
0:00:21]} 52. Be7 {[%clk 0:00:11.1]} 52... Nb8+ {[%clk 0:00:22.1]} 53. Kb7
{[%clk 0:00:10.1]} 53... Nd7 {[%clk 0:00:24]} 54. Kc6 {[%clk 0:00:11]} 54...
Nb8+ {[%clk 0:00:24.6]} 55. Kc7 {[%clk 0:00:11.1]} 55... Nd7 {[%clk 0:00:26.5]}
56. Kc6 {[%clk 0:00:10.6]} 56... Nb8+ {[%clk 0:00:27.4]} 1/2-1/2

[Event "*** Titled Tuesday Blitz"]
[Site "Chess.com"]
[Date "2018.11.06"]
[Round "7"]
[White "MikaelyanArman"]
[Black "Lovkov_Roman"]
[Result "0-1"]
[WhiteElo "2720"]
[BlackElo "2621"]
[TimeControl "180+2"]
[EndTime "14:37:51 PST"]
[Termination "Lovkov_Roman won on time"]

1. Nf3 {[%clk 0:03:01.9]} 1... Nf6 {[%clk 0:03:00.7]} 2. g3 {[%clk 0:03:03.1]}
2... g6 {[%clk 0:03:02.1]} 3. Bg2 {[%clk 0:03:04.5]} 3... Bg7 {[%clk 0:03:03.8]}
4. c4 {[%clk 0:03:05.3]} 4... O-O {[%clk 0:03:05.2]} 5. O-O {[%clk 0:03:06.3]}
5... d6 {[%clk 0:03:06.9]} 6. d4 {[%clk 0:03:05.7]} 6... Nc6 {[%clk 0:03:07.2]}
7. Nc3 {[%clk 0:03:06.5]} 7... e5 {[%clk 0:03:08.5]} 8. dxe5 {[%clk 0:03:06.9]}
8... dxe5 {[%clk 0:03:09.3]} 9. Bg5 {[%clk 0:03:03.1]} 9... Qxd1 {[%clk
0:03:02.4]} 10. Rfxd1 {[%clk 0:03:05]} 10... h6 {[%clk 0:02:51.2]} 11. Bxf6
{[%clk 0:02:52.1]} 11... Bxf6 {[%clk 0:02:53.1]} 12. Nd5 {[%clk 0:02:53.6]}
12... Bd8 {[%clk 0:02:53.9]} 13. Nd2 {[%clk 0:02:44.9]} 13... f5 {[%clk
0:02:47.7]} 14. b4 {[%clk 0:02:45]} 14... Nd4 {[%clk 0:02:34.1]} 15. e3 {[%clk
0:02:40.4]} 15... Ne6 {[%clk 0:02:35.2]} 16. Nb3 {[%clk 0:02:37.7]} 16... c6
{[%clk 0:02:35]} 17. Nc3 {[%clk 0:02:38.3]} 17... Bf6 {[%clk 0:02:31.3]} 18.
Rac1 {[%clk 0:02:36.6]} 18... Rd8 {[%clk 0:02:25.7]} 19. b5 {[%clk 0:02:31.3]}
19... e4 {[%clk 0:02:19.2]} 20. Rxd8+ {[%clk 0:02:25.7]} 20... Nxd8 {[%clk
0:02:21.1]} 21. Ne2 {[%clk 0:02:04.9]} 21... Be6 {[%clk 0:02:14.7]} 22. Ned4
{[%clk 0:02:00.4]} 22... Bf7 {[%clk 0:02:15.8]} 23. Bf1 {[%clk 0:01:57.5]} 23...
Rc8 {[%clk 0:02:16]} 24. c5 {[%clk 0:01:28.9]} 24... cxb5 {[%clk 0:01:47.5]} 25.
Bxb5 {[%clk 0:01:30.8]} 25... Ne6 {[%clk 0:01:27.7]} 26. Nxe6 {[%clk 0:01:02.2]}
26... Bxe6 {[%clk 0:01:29]} 27. Bc4 {[%clk 0:01:02.2]} 27... Kf7 {[%clk
0:01:28.6]} 28. Kf1 {[%clk 0:00:55.5]} 28... Be5 {[%clk 0:01:22.2]} 29. Ke2
{[%clk 0:00:55.4]} 29... Ke7 {[%clk 0:01:11.4]} 30. Bxe6 {[%clk 0:00:53]} 30...
Kxe6 {[%clk 0:01:13.3]} 31. a4 {[%clk 0:00:41.7]} 31... Rd8 {[%clk 0:00:54.3]}
32. c6 {[%clk 0:00:39.3]} 32... b6 {[%clk 0:00:55.7]} 33. Nd4+ {[%clk
0:00:29.3]} 33... Bxd4 {[%clk 0:00:48.5]} 34. exd4 {[%clk 0:00:31.2]} 34... Kd5
{[%clk 0:00:44.7]} 35. a5 {[%clk 0:00:20.9]} 35... Rc8 {[%clk 0:00:36]} 36. c7
{[%clk 0:00:15.9]} 36... Kd6 {[%clk 0:00:32.8]} 37. axb6 {[%clk 0:00:16.4]}
37... axb6 {[%clk 0:00:33.3]} 38. Rb1 {[%clk 0:00:15.7]} 38... Kxc7 {[%clk
0:00:32.9]} 39. Ke3 {[%clk 0:00:11.5]} 39... Ra8 {[%clk 0:00:31.4]} 40. Rb2
{[%clk 0:00:09.8]} 40... Ra5 {[%clk 0:00:28.6]} 41. h4 {[%clk 0:00:08.5]} 41...
Kc6 {[%clk 0:00:25.5]} 42. Kf4 {[%clk 0:00:08.9]} 42... Rd5 {[%clk 0:00:23.9]}
43. Rb4 {[%clk 0:00:04.7]} 43... Rb5 {[%clk 0:00:21.5]} 44. Rc4+ {[%clk
0:00:05.2]} 44... Kd6 {[%clk 0:00:21.1]} 45. Rc8 {[%clk 0:00:05.5]} 45... Rb3
{[%clk 0:00:21.6]} 46. Rd8+ {[%clk 0:00:05.9]} 46... Ke7 {[%clk 0:00:21.7]} 47.
Rh8 {[%clk 0:00:05.9]} 47... Rf3+ {[%clk 0:00:22.3]} 48. Ke5 {[%clk 0:00:07.2]}
48... Rxf2 {[%clk 0:00:22.2]} 49. d5 {[%clk 0:00:08.6]} 49... e3 {[%clk
0:00:22]} 50. d6+ {[%clk 0:00:10]} 50... Kd7 {[%clk 0:00:23.1]} 51. Rh7+ {[%clk
0:00:11.3]} 51... Kc6 {[%clk 0:00:24.2]} 52. Rc7+ {[%clk 0:00:11.1]} 52... Kb5
{[%clk 0:00:25.2]} 53. d7 {[%clk 0:00:08.2]} 53... Rd2 {[%clk 0:00:26.6]} 54.
Ke6 {[%clk 0:00:07.7]} 54... e2 {[%clk 0:00:25.6]} 55. Rc1 {[%clk 0:00:08.4]}
55... Rd1 {[%clk 0:00:25.9]} 56. h5 {[%clk 0:00:03.3]} 56... e1=Q+ {[%clk
0:00:25.3]} 0-1

[Event "*** Titled Tuesday Blitz"]
[Site "Chess.com"]
[Date "2018.11.06"]
[Round "7"]
[White "tteshan"]
[Black "WorldChampionBulletChess"]
[Result "1-0"]
[WhiteElo "2136"]
[BlackElo "2212"]
[TimeControl "180+2"]
[EndTime "14:38:02 PST"]
[Termination "tteshan won by checkmate"]

1. d4 {[%clk 0:03:01.9]} 1... Nf6 {[%clk 0:02:59.6]} 2. c4 {[%clk 0:03:02.2]}
2... e6 {[%clk 0:03:01.5]} 3. Nc3 {[%clk 0:03:02.3]} 3... b6 {[%clk 0:03:02.2]}
4. e4 {[%clk 0:03:02]} 4... Bb7 {[%clk 0:02:59.6]} 5. Bd3 {[%clk 0:03:03.3]}
5... Bb4 {[%clk 0:02:56.8]} 6. f3 {[%clk 0:03:02.8]} 6... O-O {[%clk 0:02:56.7]}
7. Ne2 {[%clk 0:03:02.7]} 7... d6 {[%clk 0:02:42.8]} 8. a3 {[%clk 0:03:03.1]}
8... Bxc3+ {[%clk 0:02:43]} 9. Nxc3 {[%clk 0:03:04.8]} 9... Nbd7 {[%clk
0:02:44.7]} 10. O-O {[%clk 0:03:05.7]} 10... e5 {[%clk 0:02:37.1]} 11. d5 {[%clk
0:03:06]} 11... Ne8 {[%clk 0:02:17.3]} 12. b4 {[%clk 0:03:06.1]} 12... g6 {[%clk
0:02:17.8]} 13. Qc2 {[%clk 0:03:02.4]} 13... Ng7 {[%clk 0:02:18.1]} 14. Bh6
{[%clk 0:03:00.8]} 14... Qe7 {[%clk 0:02:13.8]} 15. g3 {[%clk 0:02:58.1]} 15...
a6 {[%clk 0:02:01.2]} 16. Kh1 {[%clk 0:02:55.4]} 16... Rac8 {[%clk 0:01:42.8]}
17. f4 {[%clk 0:02:55.9]} 17... f6 {[%clk 0:01:37.8]} 18. f5 {[%clk 0:02:55.5]}
18... g5 {[%clk 0:01:38.7]} 19. Nd1 {[%clk 0:02:47.6]} 19... c6 {[%clk 0:01:25]}
20. Qe2 {[%clk 0:02:44]} 20... cxd5 {[%clk 0:01:00.5]} 21. cxd5 {[%clk
0:02:44.2]} 21... Rc7 {[%clk 0:00:40]} 22. Bxa6 {[%clk 0:02:42.1]} 22... Bxa6
{[%clk 0:00:40.5]} 23. Qxa6 {[%clk 0:02:41.7]} 23... Rfc8 {[%clk 0:00:41.4]} 24.
Bxg7 {[%clk 0:02:39.4]} 24... Kxg7 {[%clk 0:00:42.4]} 25. Ne3 {[%clk 0:02:38.8]}
25... Rc3 {[%clk 0:00:37.2]} 26. Qe2 {[%clk 0:02:38]} 26... Ra8 {[%clk 0:00:36]}
27. a4 {[%clk 0:02:37.4]} 27... Qd8 {[%clk 0:00:30.7]} 28. Rg1 {[%clk
0:02:25.4]} 28... Qc7 {[%clk 0:00:24.5]} 29. h4 {[%clk 0:02:25]} 29... h6 {[%clk
0:00:24.4]} 30. h5 {[%clk 0:02:02.5]} 30... Nb8 {[%clk 0:00:17.2]} 31. Ra2
{[%clk 0:01:55.3]} 31... Nd7 {[%clk 0:00:16.3]} 32. Qd2 {[%clk 0:01:50.8]} 32...
Rc8 {[%clk 0:00:15.7]} 33. a5 {[%clk 0:01:40.8]} 33... bxa5 {[%clk 0:00:16]} 34.
Rxa5 {[%clk 0:01:41.7]} 34... Nb6 {[%clk 0:00:16.6]} 35. Rga1 {[%clk 0:01:38]}
35... Rc1+ {[%clk 0:00:13.6]} 36. Rxc1 {[%clk 0:01:36.8]} 36... Qxc1+ {[%clk
0:00:15.5]} 37. Qxc1 {[%clk 0:01:38]} 37... Rxc1+ {[%clk 0:00:17.4]} 38. Kg2
{[%clk 0:01:39.3]} 38... Nc4 {[%clk 0:00:18.7]} 39. Ra7+ {[%clk 0:01:34.7]}
39... Kf8 {[%clk 0:00:17.4]} 40. Ng4 {[%clk 0:01:28.4]} 40... Rc2+ {[%clk
0:00:17.6]} 41. Kh3 {[%clk 0:01:27.8]} 41... Nd2 {[%clk 0:00:18.6]} 42. Nxf6
{[%clk 0:01:22]} 42... Nf1 {[%clk 0:00:19.2]} 43. Rb7 {[%clk 0:01:06.2]} 43...
Rc3 {[%clk 0:00:19.4]} 44. Kg2 {[%clk 0:01:03.4]} 44... Ne3+ {[%clk 0:00:20.2]}
45. Kf2 {[%clk 0:00:58.9]} 45... Nd1+ {[%clk 0:00:20.6]} 46. Ke1 {[%clk
0:00:58]} 46... Ne3 {[%clk 0:00:21.3]} 47. b5 {[%clk 0:00:53.4]} 47... Ng2+
{[%clk 0:00:20]} 48. Kd2 {[%clk 0:00:52.1]} 48... Rb3 {[%clk 0:00:20.8]} 49. Kc2
{[%clk 0:00:52.9]} 49... Rb4 {[%clk 0:00:20.9]} 50. b6 {[%clk 0:00:51.7]} 50...
Ne3+ {[%clk 0:00:21.4]} 51. Kc3 {[%clk 0:00:51.3]} 51... Rc4+ {[%clk 0:00:21.9]}
52. Kd3 {[%clk 0:00:51]} 52... Rd4+ {[%clk 0:00:11.7]} 53. Kxe3 {[%clk
0:00:51.6]} 53... Rb4 {[%clk 0:00:12]} 54. Rb8+ {[%clk 0:00:48.2]} 54... Ke7
{[%clk 0:00:12.4]} 55. Ng8+ {[%clk 0:00:48.8]} 55... Kf7 {[%clk 0:00:13.4]} 56.
Nxh6+ {[%clk 0:00:50.1]} 56... Kg7 {[%clk 0:00:14.7]} 57. Ng4 {[%clk 0:00:50.3]}
57... Rb3+ {[%clk 0:00:15.3]} 58. Kf2 {[%clk 0:00:50.3]} 58... Rb2+ {[%clk
0:00:16.8]} 59. Kf3 {[%clk 0:00:51.4]} 59... Rb3+ {[%clk 0:00:18.1]} 60. Ne3
{[%clk 0:00:53]} 60... g4+ {[%clk 0:00:18.4]} 61. Kxg4 {[%clk 0:00:53.3]} 61...
Rxe3 {[%clk 0:00:19.4]} 62. b7 {[%clk 0:00:53.2]} 62... Rxe4+ {[%clk 0:00:20.6]}
63. Kg5 {[%clk 0:00:53.7]} 63... Re3 {[%clk 0:00:20.6]} 64. g4 {[%clk 0:00:53]}
64... Rb3 {[%clk 0:00:21.4]} 65. f6+ {[%clk 0:00:53.3]} 65... Kf7 {[%clk
0:00:21.8]} 66. Rh8 {[%clk 0:00:52.7]} 66... e4 {[%clk 0:00:19.8]} 67. b8=Q
{[%clk 0:00:52.5]} 67... Rxb8 {[%clk 0:00:20]} 68. Rxb8 {[%clk 0:00:53.4]} 68...
e3 {[%clk 0:00:21.9]} 69. Rb7+ {[%clk 0:00:49.7]} 69... Kf8 {[%clk 0:00:21.6]}
70. Kg6 {[%clk 0:00:51]} 70... e2 {[%clk 0:00:22.4]} 71. Rb8# {[%clk 0:00:48.5]}
1-0

[Event "*** Titled Tuesday Blitz"]
[Site "Chess.com"]
[Date "2018.11.06"]
[Round "7"]
[White "VerdeNotte"]
[Black "Grieve72"]
[Result "1-0"]
[WhiteElo "2817"]
[BlackElo "2322"]
[TimeControl "180+2"]
[EndTime "14:38:17 PST"]
[Termination "VerdeNotte won by resignation"]

1. e4 {[%clk 0:03:01.9]} 1... d6 {[%clk 0:02:59.9]} 2. d4 {[%clk 0:03:02.2]}
2... Nf6 {[%clk 0:03:01.1]} 3. Nc3 {[%clk 0:03:01.3]} 3... Nbd7 {[%clk
0:03:02.1]} 4. g4 {[%clk 0:03:01]} 4... h6 {[%clk 0:03:02.6]} 5. Be3 {[%clk
0:02:51]} 5... e5 {[%clk 0:03:00.8]} 6. d5 {[%clk 0:02:52.2]} 6... c6 {[%clk
0:02:58.4]} 7. f3 {[%clk 0:02:45.8]} 7... Be7 {[%clk 0:02:53.9]} 8. Qd2 {[%clk
0:02:43.4]} 8... Nh7 {[%clk 0:02:43.5]} 9. O-O-O {[%clk 0:02:38.8]} 9... c5
{[%clk 0:02:28.6]} 10. Nge2 {[%clk 0:02:27.5]} 10... b5 {[%clk 0:02:19.8]} 11.
Nxb5 {[%clk 0:02:27.3]} 11... Qb6 {[%clk 0:02:13.2]} 12. Nec3 {[%clk 0:02:27.9]}
12... Rb8 {[%clk 0:01:59]} 13. h4 {[%clk 0:02:26.1]} 13... a6 {[%clk 0:01:54.5]}
14. Na4 {[%clk 0:02:27]} 14... Qb7 {[%clk 0:01:56]} 15. Na3 {[%clk 0:02:25.5]}
15... Nb6 {[%clk 0:01:46.9]} 16. Nxb6 {[%clk 0:02:26.1]} 16... Qxb6 {[%clk
0:01:48.8]} 17. Nc4 {[%clk 0:02:27.4]} 17... Qb7 {[%clk 0:01:49.9]} 18. g5
{[%clk 0:02:24.1]} 18... h5 {[%clk 0:01:43.6]} 19. Bh3 {[%clk 0:02:24.8]} 19...
Bxh3 {[%clk 0:01:32.1]} 20. Rxh3 {[%clk 0:02:26.7]} 20... Qd7 {[%clk 0:01:33.8]}
21. Rg3 {[%clk 0:02:24.8]} 21... Qa4 {[%clk 0:01:34.2]} 22. Na3 {[%clk
0:02:22.2]} 22... O-O {[%clk 0:01:21.7]} 23. Qc3 {[%clk 0:02:16.8]} 23... Bd8
{[%clk 0:01:10.6]} 24. Bd2 {[%clk 0:02:01.5]} 24... Re8 {[%clk 0:01:10.6]} 25.
Qc4 {[%clk 0:02:00.5]} 25... Qd7 {[%clk 0:00:55.4]} 26. Qxa6 {[%clk 0:02:01]}
26... Nf8 {[%clk 0:00:54.1]} 27. Qc6 {[%clk 0:01:58.1]} 27... Qxc6 {[%clk
0:00:42.9]} 28. dxc6 {[%clk 0:01:59]} 28... Rc8 {[%clk 0:00:44.3]} 29. Nc4
{[%clk 0:01:53.7]} 29... Rxc6 {[%clk 0:00:41.2]} 30. a4 {[%clk 0:01:52.7]} 30...
Ng6 {[%clk 0:00:38.6]} 31. Be3 {[%clk 0:01:51.7]} 31... Bc7 {[%clk 0:00:26.1]}
32. Rh3 {[%clk 0:01:51.9]} 32... Rb8 {[%clk 0:00:20.9]} 33. Rh2 {[%clk
0:01:51.9]} 33... Kf8 {[%clk 0:00:19.3]} 34. Rdh1 {[%clk 0:01:51.6]} 34... Ke7
{[%clk 0:00:19.7]} 35. Rd2 {[%clk 0:01:52.7]} 35... Ke6 {[%clk 0:00:20.2]} 36.
Bf2 {[%clk 0:01:53.9]} 36... f6 {[%clk 0:00:09.1]} 37. gxf6 {[%clk 0:01:50.3]}
37... gxf6 {[%clk 0:00:11]} 38. Rg1 {[%clk 0:01:51.3]} 38... Nf4 {[%clk
0:00:09.9]} 39. Be3 {[%clk 0:01:50.2]} 39... d5 {[%clk 0:00:07]} 40. Bxf4 {[%clk
0:01:51.4]} 40... dxc4 {[%clk 0:00:07.9]} 41. Be3 {[%clk 0:01:50.9]} 41... c3
{[%clk 0:00:04.2]} 42. bxc3 {[%clk 0:01:51.9]} 42... Ba5 {[%clk 0:00:05.6]} 43.
Rd5 {[%clk 0:01:45.5]} 43... Bxc3 {[%clk 0:00:05]} 44. Rxc5 {[%clk 0:01:46.8]}
44... Rxc5 {[%clk 0:00:06.4]} 45. Bxc5 {[%clk 0:01:47.7]} 45... Ra8 {[%clk
0:00:06.3]} 46. Kd1 {[%clk 0:01:47.7]} 46... Rxa4 {[%clk 0:00:06.3]} 47. Ke2
{[%clk 0:01:49.2]} 47... Bd4 {[%clk 0:00:05.5]} 48. Bxd4 {[%clk 0:01:50.2]}
48... Rxd4 {[%clk 0:00:07.4]} 49. Ra1 {[%clk 0:01:49]} 49... Rd6 {[%clk
0:00:06.5]} 50. c4 {[%clk 0:01:49.7]} 50... f5 {[%clk 0:00:06.6]} 51. c5 {[%clk
0:01:50.2]} 51... Rc6 {[%clk 0:00:07.7]} 52. Rc1 {[%clk 0:01:51.4]} 52... fxe4
{[%clk 0:00:03.3]} 53. fxe4 {[%clk 0:01:53.3]} 53... Rc8 {[%clk 0:00:03.8]} 54.
Kd3 {[%clk 0:01:54.4]} 54... Kd7 {[%clk 0:00:04.5]} 55. Kc4 {[%clk 0:01:54.2]}
55... Rf8 {[%clk 0:00:04.6]} 56. Kd5 {[%clk 0:01:54.9]} 56... Rf4 {[%clk
0:00:05.9]} 57. c6+ {[%clk 0:01:55.5]} 57... Kc7 {[%clk 0:00:07.2]} 58. Rb1
{[%clk 0:01:53.8]} 58... Rxh4 {[%clk 0:00:07]} 59. Rb7+ {[%clk 0:01:55]} 59...
Kc8 {[%clk 0:00:08.6]} 60. Rh7 {[%clk 0:01:56.6]} 60... Rh1 {[%clk 0:00:08.4]}
61. Kd6 {[%clk 0:01:52.7]} 61... Rd1+ {[%clk 0:00:08.6]} 62. Kxe5 {[%clk
0:01:54]} 62... Rc1 {[%clk 0:00:09.1]} 63. Kd6 {[%clk 0:01:55.2]} 63... Rd1+
{[%clk 0:00:10.3]} 64. Ke7 {[%clk 0:01:48.7]} 64... Re1 {[%clk 0:00:08.1]} 65.
Kd6 {[%clk 0:01:21.4]} 65... Rd1+ {[%clk 0:00:09.2]} 66. Ke6 {[%clk 0:01:20.8]}
66... Re1 {[%clk 0:00:06.5]} 67. e5 {[%clk 0:01:21.5]} 67... Rc1 {[%clk
0:00:06.1]} 68. Rh8+ {[%clk 0:01:20.8]} 68... Kc7 {[%clk 0:00:06.5]} 69. Rxh5
{[%clk 0:01:22.7]} 69... Rxc6+ {[%clk 0:00:04.6]} 70. Ke7 {[%clk 0:01:23.9]}
70... Rg6 {[%clk 0:00:04.2]} 71. e6 {[%clk 0:01:24.4]} 71... Rg1 {[%clk
0:00:03.9]} 72. Rc5+ {[%clk 0:01:24.2]} 72... Kb6 {[%clk 0:00:04.9]} 73. Rc2
{[%clk 0:01:25.8]} 73... Re1 {[%clk 0:00:04.4]} 74. Kd7 {[%clk 0:01:26.8]} 74...
Rd1+ {[%clk 0:00:04]} 75. Ke8 {[%clk 0:01:28.1]} 75... Kb7 {[%clk 0:00:03.8]}
76. e7 {[%clk 0:01:28.8]} 76... Re1 {[%clk 0:00:05.1]} 77. Rf2 {[%clk
0:01:27.6]} 77... Kc7 {[%clk 0:00:05.3]} 78. Kf8 {[%clk 0:01:28.8]} 78... Kd7
{[%clk 0:00:05.5]} 79. Rd2+ {[%clk 0:01:29.6]} 1-0

[Event "*** Titled Tuesday Blitz"]
[Site "Chess.com"]
[Date "2018.11.06"]
[Round "7"]
[White "JonahWillow"]
[Black "Boorchess"]
[Result "1-0"]
[WhiteElo "2686"]
[BlackElo "2442"]
[TimeControl "180+2"]
[EndTime "14:38:19 PST"]
[Termination "JonahWillow won by resignation"]

1. e4 {[%clk 0:03:01.9]} 1... e5 {[%clk 0:03:01]} 2. Nf3 {[%clk 0:03:02.1]} 2...
Nc6 {[%clk 0:03:02.4]} 3. Nc3 {[%clk 0:03:01.9]} 3... Nf6 {[%clk 0:03:03.3]} 4.
Bb5 {[%clk 0:03:01.3]} 4... Bb4 {[%clk 0:03:03.9]} 5. O-O {[%clk 0:03:00.2]}
5... O-O {[%clk 0:03:05.6]} 6. d3 {[%clk 0:02:59.9]} 6... Bxc3 {[%clk
0:03:07.3]} 7. bxc3 {[%clk 0:03:01.1]} 7... Qe7 {[%clk 0:03:08.9]} 8. Bg5 {[%clk
0:03:02.3]} 8... Nd8 {[%clk 0:03:09.7]} 9. Re1 {[%clk 0:03:00.3]} 9... Ne6
{[%clk 0:03:10.9]} 10. Bc1 {[%clk 0:03:00.5]} 10... d6 {[%clk 0:03:07.2]} 11. d4
{[%clk 0:02:50.1]} 11... c6 {[%clk 0:03:09.1]} 12. Bf1 {[%clk 0:02:46.2]} 12...
Qc7 {[%clk 0:03:10.5]} 13. Ba3 {[%clk 0:02:44.7]} 13... Rd8 {[%clk 0:03:11.6]}
14. Rb1 {[%clk 0:02:43.5]} 14... b6 {[%clk 0:03:12]} 15. Bc1 {[%clk 0:02:39]}
15... Re8 {[%clk 0:03:07.1]} 16. h3 {[%clk 0:02:32.4]} 16... Bb7 {[%clk
0:03:08.5]} 17. a4 {[%clk 0:02:26.1]} 17... a6 {[%clk 0:03:10]} 18. Ba3 {[%clk
0:02:20.5]} 18... Rad8 {[%clk 0:03:11]} 19. Qc1 {[%clk 0:02:21.7]} 19... c5
{[%clk 0:03:01.2]} 20. d5 {[%clk 0:02:20.3]} 20... Nf4 {[%clk 0:03:02.6]} 21. g3
{[%clk 0:02:19.2]} 21... Ng6 {[%clk 0:03:04]} 22. Qb2 {[%clk 0:02:20.2]} 22...
Nd7 {[%clk 0:03:04.7]} 23. c4 {[%clk 0:02:20.2]} 23... Rb8 {[%clk 0:03:06]} 24.
Qc3 {[%clk 0:02:20.3]} 24... Ba8 {[%clk 0:03:07]} 25. Rb3 {[%clk 0:02:19]} 25...
a5 {[%clk 0:03:05]} 26. Bc1 {[%clk 0:02:19.1]} 26... f6 {[%clk 0:03:06.3]} 27.
Be3 {[%clk 0:02:18.7]} 27... Rf8 {[%clk 0:03:08.2]} 28. g4 {[%clk 0:02:17.4]}
28... h6 {[%clk 0:03:09.8]} 29. Reb1 {[%clk 0:02:15.1]} 29... Rbe8 {[%clk
0:03:08.5]} 30. Qd2 {[%clk 0:02:11.6]} 30... Bb7 {[%clk 0:03:08]} 31. Kh2 {[%clk
0:02:10.8]} 31... Nh8 {[%clk 0:03:08.8]} 32. Nh4 {[%clk 0:02:11.6]} 32... Rb8
{[%clk 0:02:53.3]} 33. Nf5 {[%clk 0:02:10.7]} 33... Rfe8 {[%clk 0:02:52.3]} 34.
Bxh6 {[%clk 0:02:04.5]} 34... gxh6 {[%clk 0:02:52.4]} 35. Qxh6 {[%clk
0:02:05.6]} 35... Nf8 {[%clk 0:02:53.8]} 36. Rxb6 {[%clk 0:02:03.2]} 36... Nh7
{[%clk 0:02:48.2]} 37. Nxd6 {[%clk 0:01:46.7]} 37... Re7 {[%clk 0:02:38.1]} 38.
Nf5 {[%clk 0:01:47.7]} 38... Rd7 {[%clk 0:02:37.7]} 39. d6 {[%clk 0:01:47.1]}
39... Qd8 {[%clk 0:02:37.5]} 40. Ne7+ {[%clk 0:01:42.9]} 40... Rxe7 {[%clk
0:02:35.5]} 41. dxe7 {[%clk 0:01:44.8]} 41... Qxe7 {[%clk 0:02:37.4]} 42. Bd3
{[%clk 0:01:41.9]} 42... Nf7 {[%clk 0:02:36.6]} 43. Qg6+ {[%clk 0:01:41.6]}
43... Kh8 {[%clk 0:02:38.2]} 44. h4 {[%clk 0:01:38.2]} 44... Nd6 {[%clk
0:02:31.8]} 45. g5 {[%clk 0:01:33]} 45... Rg8 {[%clk 0:02:32.5]} 46. Qh6 {[%clk
0:01:28.4]} 46... Nf7 {[%clk 0:01:52.2]} 47. Qh5 {[%clk 0:01:24.9]} 47... Nd8
{[%clk 0:01:36.3]} 48. g6 {[%clk 0:01:18.7]} 48... Rg7 {[%clk 0:01:31.5]} 49.
Rg1 {[%clk 0:01:00]} 49... Qe8 {[%clk 0:01:29.1]} 50. Rxf6 {[%clk 0:00:52.9]}
50... Bc8 {[%clk 0:00:42]} 51. Qh6 {[%clk 0:00:24.9]} 51... Ne6 {[%clk
0:00:38.9]} 52. gxh7 {[%clk 0:00:21.2]} 52... Rxh7 {[%clk 0:00:40.3]} 53. Qg6
{[%clk 0:00:07.7]} 53... Rxh4+ {[%clk 0:00:41.6]} 54. Kg3 {[%clk 0:00:09]} 54...
Rh3+ {[%clk 0:00:43.1]} 55. Kxh3 {[%clk 0:00:10]} 55... Nf4+ {[%clk 0:00:44.5]}
56. Kh2 {[%clk 0:00:10.7]} 56... Nxg6 {[%clk 0:00:45.8]} 57. Rfxg6 {[%clk
0:00:12.6]} 57... Kh7 {[%clk 0:00:31.6]} 58. Rg7+ {[%clk 0:00:13.8]} 58... Kh6
{[%clk 0:00:32.7]} 59. R1g3 {[%clk 0:00:14.7]} 59... Qh5+ {[%clk 0:00:27.6]} 60.
Kg2 {[%clk 0:00:14.9]} 60... Be6 {[%clk 0:00:09.5]} 61. Re7 {[%clk 0:00:14.9]}
61... Bf7 {[%clk 0:00:05.9]} 62. Rh3 {[%clk 0:00:12.5]} 62... Kg7 {[%clk
0:00:06.9]} 1-0